fUSD/lending_fUSD_20260626
["ID","MTS","AMOUNT","RATE_DAILY","PERIOD"]
[426476746,1782438632000,-166.66,0.00010959,2]
[426476749,1782438632000,-167.15,0.00011,2]
[426476748,1782438632000,-150.0,0.00010959,2]
[426476752,1782438632000,-177.95,0.0001103,2]
[426476754,1782438632000,-166.66,0.00011068,2]
[426476745,1782438632000,-500.0,0.00010795,2]
[426476761,1782438632000,-193.0,0.00011191,2]
[426476755,1782438632000,-868.61,0.00011083,2]
[426476760,1782438632000,-255.0,0.0001118,2]
[426476758,1782438632000,-166.66,0.00011178,2]
[426476756,1782438632000,-500.0,0.00011123,2]
[426476753,1782438632000,-250.0,0.00011043,2]
[426476764,1782438632000,-500.0,0.00011191,2]
[426476788,1782438638000,-593.22660143,0.00011454,2]
[426476787,1782438638000,-2902.44235239,0.00011454,2]
[426476786,1782438638000,-160.0,0.00010174,2]
[426476789,1782438640000,-452.3836964,0.00011373,2]
[426476797,1782438644000,-1145.0,0.00011373,2]
[426476798,1782438644000,-6986.37,0.00011373,2]
[426476796,1782438644000,-2816.48638267,0.00011373,2]
[426476804,1782438647000,-418.14182743,0.00011373,2]
[426476806,1782438647000,-52.4868282,0.00011454,2]
[426476805,1782438647000,-2379.20112355,0.00011373,2]
[426476807,1782438772000,328.60256738,0.00037249,120]
[426476808,1782438779000,500.0,0.00037249,120]
[426476811,1782438780000,500.0,0.00037249,120]
[426476810,1782438780000,500.0,0.00037249,120]
[426476809,1782438780000,500.0,0.00037249,120]
[426476812,1782438781000,500.0,0.00037249,120]
[426476813,1782438781000,500.0,0.00037249,120]
[426476814,1782438781000,500.0,0.00037249,120]
[426476815,1782438781000,500.0,0.00037249,120]
[426476818,1782438782000,500.0,0.00037249,120]
[426476817,1782438782000,500.0,0.00037249,120]
[426476816,1782438782000,500.0,0.00037249,120]
[426476822,1782438783000,500.0,0.00037249,120]
[426476821,1782438783000,500.0,0.00037249,120]
[426476820,1782438783000,500.0,0.00037249,120]
[426476819,1782438783000,500.0,0.00037249,120]
[426476825,1782438784000,500.0,0.00037249,120]
[426476824,1782438784000,500.0,0.00037249,120]
[426476823,1782438784000,500.0,0.00037249,120]
[426476826,1782438785000,422.69794289,0.00037249,120]
[426476827,1782438825000,209.0,0.00037249,120]
[426476828,1782438882000,8760.56304812,8e-05,2]
[426476829,1782438911000,388.0,0.00037249,120]
[426476830,1782438976000,150.0,9.781e-05,2]
[426476831,1782438996000,166.4,9.613e-05,2]
[426476832,1782438998000,173.08664966,0.0003,120]
[426476834,1782439045000,1712.42361135,0.00037249,120]
[426476837,1782439052000,11110.59198975,0.00037249,120]
[426476838,1782439059000,254.60185693,0.00037249,120]
[426476839,1782439060000,176.53799738,0.00030135,120]
[426476840,1782439061000,156.28629582,0.00037249,120]
[426476842,1782439068000,774.97119117,0.00037249,120]
[426476843,1782439089000,3157.55,9.57e-05,2]
[426476844,1782439213000,1958.691772,9.981e-05,2]
[426476845,1782439252000,151.33432836,0.0001,2]
[426476846,1782439280000,1000.0,9.509e-05,2]
[426476847,1782439293000,-1000.0,0.00010032,2]
[426476848,1782439332000,167.15,9.82e-05,2]
[426476850,1782439352000,1193.9,9.596e-05,2]
[426476849,1782439352000,488.85,9.596e-05,2]
[426476851,1782439376000,163.33,9.52e-05,2]
[426476852,1782439450000,165.73,0.00031506,120]
[426476853,1782439467000,815.74,9.489e-05,2]
[426476854,1782439499000,-500.0,0.00010032,2]
[426476859,1782439499000,-250.0,0.00010038,2]
[426476856,1782439499000,-418.79763418,0.00010032,2]
[426476855,1782439499000,-500.0,0.00010032,2]
[426476858,1782439499000,-500.0,0.00010035,2]
[426476857,1782439499000,-279.81166212,0.00010035,2]
[426476860,1782439499000,-196.20508325,0.00010045,2]
[426476862,1782439499000,-500.0,0.00010057,2]
[426476864,1782439499000,-250.0,0.00010081,2]
[426476861,1782439499000,-500.0,0.00010057,2]
[426476865,1782439499000,-216.45114417,0.00010092,2]
[426476867,1782439499000,-150.0,0.0001019,2]
[426476866,1782439499000,-151.52,0.00010134,2]
[426476869,1782439499000,-118.78230093,0.00010314,2]
[426476868,1782439499000,-150.0,0.0001029,2]
[426476863,1782439499000,-318.43217535,0.00010057,2]
[426476870,1782439501000,-31.21769907,0.00010314,2]
[426476872,1782439501000,-4810.68230093,0.00010315,2]
[426476871,1782439501000,-158.1,0.00010315,2]
[426476873,1782439503000,-2003.98769907,0.00010315,2]
[426476874,1782439503000,-2996.01230093,0.00010315,2]
[426476875,1782439504000,-5000.0,0.00010315,2]
[426476877,1782439505000,-5000.0,0.00010315,2]
[426476876,1782439505000,-5000.0,0.00010315,2]
[426476879,1782439506000,-5000.0,0.00010315,2]
[426476878,1782439506000,-5000.0,0.00010315,2]
[426476880,1782439507000,-5000.0,0.00010315,2]
[426476881,1782439507000,-5000.0,0.00010315,2]
[426476882,1782439507000,-4282.41769907,0.00010315,2]
[426476886,1782439507000,-16.60230093,0.00010332,2]
[426476884,1782439507000,-299.99,0.00010332,2]
[426476885,1782439507000,-150.99,0.00010332,2]
[426476883,1782439507000,-250.0,0.00010323,2]
[426476887,1782439508000,-5000.0,0.00010332,2]
[426476888,1782439508000,-4983.38769907,0.00010332,2]
[426476891,1782439508000,-925.07,0.00010332,2]
[426476890,1782439508000,-983.37769907,0.00010332,2]
[426476892,1782439508000,-3091.55230093,0.00010332,2]
[426476889,1782439508000,-16.61230093,0.00010332,2]
[426476893,1782439509000,-5000.0,0.00010332,2]
[426476894,1782439509000,-1908.43769907,0.00010332,2]
[426476898,1782439509000,-151.0,0.00010485,2]
[426476895,1782439509000,-151.52,0.00010387,2]
[426476897,1782439509000,-152.0,0.00010485,2]
[426476899,1782439509000,-183.52982041,0.00010485,2]
[426476900,1782439509000,-151.0,0.00010485,2]
[426476902,1782439509000,-722.6,0.00010485,2]
[426476896,1782439509000,-150.0,0.00010391,2]
[426476901,1782439509000,-152.0,0.00010485,2]
[426476904,1782439509000,-153.0,0.00010501,2]
[426476907,1782439509000,-151.0,0.00010501,2]
[426476905,1782439509000,-301.70776136,0.00010501,2]
[426476906,1782439509000,-150.0,0.00010501,2]
[426476908,1782439509000,-151.0,0.00010501,2]
[426476909,1782439509000,-151.0,0.00010501,2]
[426476911,1782439509000,-429.79528084,0.0001051,2]
[426476910,1782439509000,-70.20471916,0.0001051,2]
[426476903,1782439509000,-150.0,0.00010492,2]
[426476923,1782439510000,-500.0,0.00010554,2]
[426476921,1782439510000,-502.60284518,0.00010554,2]
[426476918,1782439510000,-150.16307876,0.00010554,2]
[426476919,1782439510000,-1609.31058432,0.00010554,2]
[426476920,1782439510000,-228.76839164,0.00010554,2]
[426476913,1782439510000,-160.0,0.00010513,2]
[426476924,1782439510000,-1054.81039318,0.00010554,2]
[426476914,1782439510000,-160.0,0.00010513,2]
[426476915,1782439510000,-1614.95,0.00010521,2]
[426476916,1782439510000,-346.87,0.00010538,2]
[426476912,1782439510000,-285.05513885,0.00010513,2]
[426476917,1782439510000,-243.85591723,0.0001054,2]
[426476922,1782439510000,-1054.81039318,0.00010554,2]
[426476933,1782439510000,-9.68489858,0.00010554,2]
[426476926,1782439510000,-1054.81039318,0.00010554,2]
[426476938,1782439510000,-790.44332586,0.00010554,2]
[426476936,1782439510000,-1054.81039318,0.00010554,2]
[426476937,1782439510000,-1054.81039318,0.00010554,2]
[426476935,1782439510000,-1054.81039318,0.00010554,2]
[426476934,1782439510000,-1045.1254946,0.00010554,2]
[426476925,1782439510000,-320.46071916,0.00010554,2]
[426476931,1782439510000,-1054.81039318,0.00010554,2]
[426476932,1782439510000,-1054.81039318,0.00010554,2]
[426476929,1782439510000,-1054.81039318,0.00010554,2]
[426476928,1782439510000,-771.0735287,0.00010554,2]
[426476927,1782439510000,-283.73686448,0.00010554,2]
[426476930,1782439510000,-1054.81039318,0.00010554,2]
[426476939,1782439511000,-264.36706732,0.00010554,2]
[426476942,1782439511000,-1054.81039318,0.00010554,2]
[426476941,1782439511000,-1054.81039318,0.00010554,2]
[426476940,1782439511000,-1054.81039318,0.00010554,2]
[426476943,1782439511000,-1054.81039318,0.00010554,2]
[426476944,1782439511000,-516.39135996,0.00010554,2]
[426476945,1782439511000,-538.41903322,0.00010554,2]
[426476946,1782439511000,-1054.81039318,0.00010554,2]
[426476948,1782439511000,-1054.81039318,0.00010554,2]
[426476950,1782439511000,-242.33939406,0.00010554,2]
[426476949,1782439511000,-1054.81039318,0.00010554,2]
[426476951,1782439511000,-812.47099912,0.00010554,2]
[426476953,1782439511000,-1054.81039318,0.00010554,2]
[426476952,1782439511000,-1054.81039318,0.00010554,2]
[426476947,1782439511000,-1054.81039318,0.00010554,2]
[426476957,1782439512000,-1054.81039318,0.00010554,2]
[426476954,1782439512000,-1054.81039318,0.00010554,2]
[426476955,1782439512000,-1023.09782134,0.00010554,2]
[426476956,1782439512000,-31.71257184,0.00010554,2]
[426476958,1782439512000,-1054.81039318,0.00010554,2]
[426476961,1782439512000,-749.04585544,0.00010554,2]
[426476959,1782439512000,-1054.81039318,0.00010554,2]
[426476962,1782439512000,-305.76453774,0.00010554,2]
[426476963,1782439512000,-1054.81039318,0.00010554,2]
[426476965,1782439512000,-1054.81039318,0.00010554,2]
[426476967,1782439512000,-474.99388954,0.00010554,2]
[426476966,1782439512000,-1054.81039318,0.00010554,2]
[426476964,1782439512000,-1054.81039318,0.00010554,2]
[426476960,1782439512000,-1054.81039318,0.00010554,2]
[426476969,1782439513000,-1054.81039318,0.00010554,2]
[426476968,1782439513000,-579.81650364,0.00010554,2]
[426476971,1782439513000,-1054.81039318,0.00010554,2]
[426476970,1782439513000,-1054.81039318,0.00010554,2]
[426476973,1782439513000,-200.94192364,0.00010554,2]
[426476972,1782439513000,-1054.81039318,0.00010554,2]
[426476975,1782439513000,-1054.81039318,0.00010554,2]
[426476976,1782439513000,-1054.81039318,0.00010554,2]
[426476974,1782439513000,-853.86846954,0.00010554,2]
[426476978,1782439513000,-986.9770022,0.00010554,2]
[426476979,1782439513000,-62.5567397,0.00010554,2]
[426476980,1782439513000,-1049.5337419,0.00010554,2]
[426476981,1782439513000,-1049.5337419,0.00010554,2]
[426476982,1782439513000,-1049.5337419,0.00010554,2]
[426476983,1782439513000,-1049.5337419,0.00010554,2]
[426476984,1782439513000,-739.3082927,0.00010554,2]
[426476977,1782439513000,-1049.5337419,0.00010554,2]
[426476985,1782439514000,-310.2254492,0.00010554,2]
[426476986,1782439514000,-1049.5337419,0.00010554,2]
[426476987,1782439514000,-1049.5337419,0.00010554,2]
[426476988,1782439514000,-1049.5337419,0.00010554,2]
[426476989,1782439514000,-1049.5337419,0.00010554,2]
[426476990,1782439514000,-491.6395832,0.00010554,2]
[426476991,1782439514000,-557.8941587,0.00010554,2]
[426476994,1782439514000,-1049.5337419,0.00010554,2]
[426476995,1782439514000,-1049.5337419,0.00010554,2]
[426477000,1782439514000,-1049.5337419,0.00010554,2]
[426477001,1782439514000,-1045.8359061,0.00010554,2]
[426476999,1782439514000,-1049.5337419,0.00010554,2]
[426476993,1782439514000,-1049.5337419,0.00010554,2]
[426476998,1782439514000,-1049.5337419,0.00010554,2]
[426476996,1782439514000,-243.9708737,0.00010554,2]
[426476992,1782439514000,-1049.5337419,0.00010554,2]
[426476997,1782439514000,-805.5628682,0.00010554,2]
[426477003,1782439515000,-1049.5337419,0.00010554,2]
[426477002,1782439515000,-3.6978358,0.00010554,2]
[426477004,1782439515000,-1049.5337419,0.00010554,2]
[426477005,1782439515000,-1049.5337419,0.00010554,2]
[426477007,1782439515000,-798.1671966,0.00010554,2]
[426477006,1782439515000,-1049.5337419,0.00010554,2]
[426477008,1782439515000,-251.3665453,0.00010554,2]
[426477009,1782439515000,-1049.5337419,0.00010554,2]
[426477019,1782439515000,-212.963147,0.00010554,2]
[426477011,1782439515000,-1049.5337419,0.00010554,2]
[426477016,1782439515000,-1072.00039955,0.00010554,2]
[426477018,1782439515000,-1072.00039955,0.00010554,2]
[426477017,1782439515000,-1072.00039955,0.00010554,2]
[426477010,1782439515000,-1049.5337419,0.00010554,2]
[426477014,1782439515000,-499.0352548,0.00010554,2]
[426477012,1782439515000,-1049.5337419,0.00010554,2]
[426477013,1782439515000,-550.4984871,0.00010554,2]
[426477015,1782439515000,-1072.00039955,0.00010554,2]
[426477020,1782439516000,-859.03725255,0.00010554,2]
[426477021,1782439516000,-1072.00039955,0.00010554,2]
[426477022,1782439516000,-1072.00039955,0.00010554,2]
[426477024,1782439516000,-924.9615488,0.00010554,2]
[426477023,1782439516000,-1072.00039955,0.00010554,2]
[426477025,1782439516000,-147.03885075,0.00010554,2]
[426477028,1782439516000,-1072.00039955,0.00010554,2]
[426477026,1782439516000,-1072.00039955,0.00010554,2]
[426477031,1782439516000,-64.95955105,0.00010557,2]
[426477029,1782439516000,-1072.00039955,0.00010554,2]
[426477037,1782439516000,-500.0,0.00010557,2]
[426477036,1782439516000,-500.0,0.00010557,2]
[426477035,1782439516000,-500.0,0.00010557,2]
[426477027,1782439516000,-1072.00039955,0.00010554,2]
[426477033,1782439516000,-602.38606348,0.00010557,2]
[426477032,1782439516000,-485.86813911,0.00010557,2]
[426477030,1782439516000,-500.0,0.00010557,2]
[426477034,1782439516000,-500.0,0.00010557,2]
[426477045,1782439517000,-500.0,0.00010557,2]
[426477038,1782439517000,-345.50501749,0.00010557,2]
[426477039,1782439517000,-235.88438025,0.00010557,2]
[426477041,1782439517000,-500.0,0.00010557,2]
[426477042,1782439517000,-330.35639967,0.00010557,2]
[426477044,1782439517000,-500.0,0.00010557,2]
[426477043,1782439517000,-169.64360033,0.00010557,2]
[426477040,1782439517000,-500.0,0.00010557,2]
[426477046,1782439517000,-500.0,0.00010557,2]
[426477048,1782439517000,-500.0,0.00010557,2]
[426477049,1782439517000,-500.0,0.00010557,2]
[426477051,1782439517000,-500.0,0.00010557,2]
[426477050,1782439517000,-500.0,0.00010557,2]
[426477053,1782439517000,-500.0,0.00010557,2]
[426477052,1782439517000,-500.0,0.00010557,2]
[426477054,1782439517000,-134.44995398,0.00010557,2]
[426477047,1782439517000,-195.90644569,0.00010557,2]
[426477059,1782439518000,-150.0,0.00010557,2]
[426477056,1782439518000,-400.0,0.00010557,2]
[426477058,1782439518000,-150.0,0.00010557,2]
[426477055,1782439518000,-365.55004602,0.00010557,2]
[426477057,1782439518000,-300.0,0.00010557,2]
[426477060,1782439518000,-150.0,0.00010557,2]
[426477062,1782439518000,-150.0,0.00010557,2]
[426477069,1782439518000,-151.0,0.00010558,2]
[426477063,1782439518000,-150.0,0.00010557,2]
[426477070,1782439518000,-1734.73243968,0.00010558,2]
[426477068,1782439518000,-332.2575143,0.00010558,2]
[426477066,1782439518000,-213.0,0.00010558,2]
[426477061,1782439518000,-150.0,0.00010557,2]
[426477065,1782439518000,-150.0,0.00010558,2]
[426477064,1782439518000,-151.0,0.00010558,2]
[426477067,1782439518000,-302.46,0.00010558,2]
[426477071,1782439519000,-5000.0,0.00010558,2]
[426477073,1782439520000,-5000.0,0.00010558,2]
[426477072,1782439520000,-5000.0,0.00010558,2]
[426477076,1782439521000,-5000.0,0.00010558,2]
[426477075,1782439521000,-5000.0,0.00010558,2]
[426477074,1782439521000,-5000.0,0.00010558,2]
[426477079,1782439522000,-5000.0,0.00010558,2]
[426477078,1782439522000,-5000.0,0.00010558,2]
[426477077,1782439522000,-5000.0,0.00010558,2]
[426477081,1782439523000,-5000.0,0.00010558,2]
[426477080,1782439523000,-5000.0,0.00010558,2]
[426477084,1782439524000,-5000.0,0.00010558,2]
[426477082,1782439524000,-5000.0,0.00010558,2]
[426477083,1782439524000,-5000.0,0.00010558,2]
[426477088,1782439525000,-5000.0,0.00010558,2]
[426477086,1782439525000,-290.97782926,0.00010554,2]
[426477087,1782439525000,-4209.02217074,0.00010558,2]
[426477085,1782439525000,-500.0,0.00010554,2]
[426477089,1782439526000,-5000.0,0.00010558,2]
[426477090,1782439527000,-5000.0,0.00010558,2]
[426477091,1782439528000,-5000.0,0.00010558,2]
[426477093,1782439529000,-5000.0,0.00010558,2]
[426477092,1782439529000,-5000.0,0.00010558,2]
[426477094,1782439549000,5076.59,0.00010471,2]
[426477095,1782439567000,11636.7368828,0.00037265,120]
[426477096,1782439577000,274.405719,0.00037265,120]
[426477097,1782439583000,1877.47740378,9.671e-05,2]
[426477098,1782439584000,1395.65404606,9.671e-05,2]
[426477102,1782439587000,-4500.0,0.00010471,2]
[426477100,1782439587000,-150.0,0.0001047,2]
[426477101,1782439587000,-150.0,0.00010471,2]
[426477099,1782439587000,-200.0,0.00010165,2]
[426477103,1782439594000,-5000.0,0.00010114,2]
[426477104,1782439601000,150.0,9.811e-05,2]
[426477107,1782439637000,639.6,0.00037265,120]
[426477106,1782439637000,639.6,0.00037265,120]
[426477105,1782439637000,639.6,0.00037265,120]
[426477110,1782439638000,639.6,0.00037265,120]
[426477109,1782439638000,639.6,0.00037265,120]
[426477108,1782439638000,639.6,0.00037265,120]
[426477112,1782439639000,639.6,0.00037265,120]
[426477111,1782439639000,639.6,0.00037265,120]
[426477113,1782439640000,639.6,0.00037265,120]
[426477114,1782439640000,639.6,0.00037265,120]
[426477116,1782439640000,639.6,0.00037265,120]
[426477115,1782439640000,639.6,0.00037265,120]
[426477119,1782439641000,639.6,0.00037265,120]
[426477118,1782439641000,639.6,0.00037265,120]
[426477117,1782439641000,639.6,0.00037265,120]
[426477123,1782439642000,639.6,0.00037265,120]
[426477122,1782439642000,639.6,0.00037265,120]
[426477121,1782439642000,639.6,0.00037265,120]
[426477120,1782439642000,639.6,0.00037265,120]
[426477126,1782439643000,639.6,0.00037265,120]
[426477125,1782439643000,639.6,0.00037265,120]
[426477124,1782439643000,639.6,0.00037265,120]
[426477128,1782439644000,639.80373998,0.00037265,120]
[426477127,1782439644000,639.6,0.00037265,120]
[426477131,1782439652000,-277.58874476,0.00010114,2]
[426477129,1782439652000,-2455.866902,0.00010114,2]
[426477130,1782439652000,-160.0,0.00010114,2]
[426477133,1782439652000,-160.0,0.00010114,2]
[426477134,1782439652000,-1658.03,0.00010127,2]
[426477132,1782439652000,-216.48047229,0.00010114,2]
[426477135,1782439652000,-72.03388095,0.00010151,2]
[426477140,1782439658000,-1989.40520436,0.00010471,2]
[426477138,1782439658000,-1376.06,0.00010443,2]
[426477139,1782439658000,-150.0,0.0001047,2]
[426477136,1782439658000,-108.47479564,0.00010151,2]
[426477137,1782439658000,-1376.06,0.00010189,2]
[426477141,1782439659000,-5000.0,0.00010471,2]
[426477143,1782439691000,-4638.7,0.00010471,2]
[426477142,1782439691000,-361.3,0.00010207,2]
[426477144,1782439692000,-5000.0,0.00010471,2]
[426477147,1782439693000,-5000.0,0.00010471,2]
[426477146,1782439693000,-5000.0,0.00010471,2]
[426477145,1782439693000,-5000.0,0.00010471,2]
[426477150,1782439694000,-5000.0,0.00010471,2]
[426477149,1782439694000,-5000.0,0.00010471,2]
[426477148,1782439694000,-5000.0,0.00010471,2]
[426477151,1782439695000,-5000.0,0.00010471,2]
[426477153,1782439695000,-5000.0,0.00010471,2]
[426477152,1782439695000,-5000.0,0.00010471,2]
[426477156,1782439696000,-5000.0,0.00010471,2]
[426477155,1782439696000,-5000.0,0.00010471,2]
[426477154,1782439696000,-5000.0,0.00010471,2]
[426477158,1782439697000,-5000.0,0.00010471,2]
[426477157,1782439697000,-5000.0,0.00010471,2]
[426477159,1782439698000,-5000.0,0.00010471,2]
[426477161,1782439698000,-5000.0,0.00010471,2]
[426477160,1782439698000,-5000.0,0.00010471,2]
[426477164,1782439699000,-5000.0,0.00010471,2]
[426477163,1782439699000,-5000.0,0.00010471,2]
[426477162,1782439699000,-5000.0,0.00010471,2]
[426477167,1782439700000,-5000.0,0.00010471,2]
[426477166,1782439700000,-5000.0,0.00010471,2]
[426477165,1782439700000,-5000.0,0.00010471,2]
[426477168,1782439705000,-5000.0,0.00010471,2]
[426477169,1782439706000,-5000.0,0.00010471,2]
[426477170,1782439706000,-5000.0,0.00010471,2]
[426477171,1782439706000,-5000.0,0.00010471,2]
[426477172,1782439707000,-5000.0,0.00010471,2]
[426477174,1782439708000,-5000.0,0.00010471,2]
[426477173,1782439708000,-5000.0,0.00010471,2]
[426477175,1782439709000,-5000.0,0.00010471,2]
[426477176,1782439710000,-5000.0,0.00010471,2]
[426477177,1782439711000,-5000.0,0.00010471,2]
[426477178,1782439719000,151.0,0.00010471,2]
[426477179,1782439722000,-5000.0,0.00010471,2]
[426477180,1782439726000,2340.346,0.00010459,2]
[426477181,1782439737000,-248.39,0.00010399,2]
[426477183,1782439737000,-4601.61,0.00010459,2]
[426477182,1782439737000,-150.0,0.00010459,2]
[426477187,1782439769000,-3539.05,0.00010459,2]
[426477185,1782439769000,-151.0,0.00010458,2]
[426477186,1782439769000,-150.0,0.00010458,2]
[426477184,1782439769000,-150.0,0.00010458,2]
[426477188,1782439771000,-5000.0,0.00010459,2]
[426477189,1782439784000,-151.0,0.00010459,2]
[426477190,1782439784000,-151.0,0.00010459,2]
[426477191,1782439784000,-4698.0,0.00010459,2]
[426477194,1782439800000,-4699.0,0.00010459,2]
[426477193,1782439800000,-151.0,0.00010459,2]
[426477192,1782439800000,-150.0,0.00010459,2]
[426477196,1782439801000,-5000.0,0.00010459,2]
[426477195,1782439801000,-5000.0,0.00010459,2]
[426477198,1782439802000,-5000.0,0.00010459,2]
[426477197,1782439802000,-5000.0,0.00010459,2]
[426477199,1782439803000,-5000.0,0.00010459,2]
[426477201,1782439804000,-5000.0,0.00010459,2]
[426477200,1782439804000,-5000.0,0.00010459,2]
[426477202,1782439805000,-5000.0,0.00010459,2]
[426477203,1782439806000,-5000.0,0.00010459,2]
[426477204,1782439807000,-5000.0,0.00010459,2]
[426477205,1782439808000,-5000.0,0.00010459,2]
[426477207,1782439812000,-151.0,0.00010459,2]
[426477206,1782439812000,-150.0,0.00010459,2]
[426477208,1782439812000,-1583.51,0.00010459,2]
[426477210,1782439818000,-4750.0,0.00010459,2]
[426477209,1782439818000,-150.0,0.00010459,2]
[426477234,1782439831000,-500.0,0.00010557,2]
[426477230,1782439831000,-500.0,0.00010557,2]
[426477229,1782439831000,-500.0,0.00010557,2]
[426477227,1782439831000,-500.0,0.00010557,2]
[426477239,1782439831000,-500.0,0.00010557,2]
[426477228,1782439831000,-310.00744698,0.00010557,2]
[426477238,1782439831000,-500.0,0.00010557,2]
[426477226,1782439831000,-4712.80479564,0.00010471,2]
[426477220,1782439831000,-216.48047229,0.00010459,2]
[426477232,1782439831000,-500.0,0.00010557,2]
[426477224,1782439831000,-445.53326752,0.00010466,2]
[426477221,1782439831000,-160.0,0.00010459,2]
[426477223,1782439831000,-408.53915588,0.00010466,2]
[426477222,1782439831000,-56152.07139072,0.00010466,2]
[426477216,1782439831000,-152.0,0.00010459,2]
[426477218,1782439831000,-27063.8994573,0.00010459,2]
[426477217,1782439831000,-157.0,0.00010459,2]
[426477219,1782439831000,-160.0,0.00010459,2]
[426477231,1782439831000,-500.0,0.00010557,2]
[426477225,1782439831000,-160113.85618588,0.00010466,2]
[426477237,1782439831000,-500.0,0.00010557,2]
[426477233,1782439831000,-500.0,0.00010557,2]
[426477266,1782439831000,-500.0,0.00010557,2]
[426477268,1782439831000,-500.0,0.00010557,2]
[426477265,1782439831000,-500.0,0.00010557,2]
[426477267,1782439831000,-500.0,0.00010557,2]
[426477259,1782439831000,-500.0,0.00010557,2]
[426477257,1782439831000,-500.0,0.00010557,2]
[426477255,1782439831000,-422.84156108,0.00010557,2]
[426477263,1782439831000,-500.0,0.00010557,2]
[426477264,1782439831000,-500.0,0.00010557,2]
[426477253,1782439831000,-500.0,0.00010557,2]
[426477235,1782439831000,-500.0,0.00010557,2]
[426477261,1782439831000,-500.0,0.00010557,2]
[426477249,1782439831000,-500.0,0.00010557,2]
[426477247,1782439831000,-500.0,0.00010557,2]
[426477241,1782439831000,-500.0,0.00010557,2]
[426477243,1782439831000,-500.0,0.00010557,2]
[426477245,1782439831000,-500.0,0.00010557,2]
[426477236,1782439831000,-500.0,0.00010557,2]
[426477251,1782439831000,-500.0,0.00010557,2]
[426477281,1782439832000,-500.0,0.00010557,2]
[426477284,1782439832000,-500.0,0.00010557,2]
[426477285,1782439832000,-500.0,0.00010557,2]
[426477282,1782439832000,-500.0,0.00010557,2]
[426477289,1782439832000,-500.0,0.00010557,2]
[426477283,1782439832000,-500.0,0.00010557,2]
[426477286,1782439832000,-342.2841561,0.00010557,2]
[426477279,1782439832000,-500.0,0.00010557,2]
[426477280,1782439832000,-500.0,0.00010557,2]
[426477277,1782439832000,-500.0,0.00010557,2]
[426477269,1782439832000,-500.0,0.00010557,2]
[426477288,1782439832000,-500.0,0.00010557,2]
[426477272,1782439832000,-500.0,0.00010557,2]
[426477273,1782439832000,-500.0,0.00010557,2]
[426477274,1782439832000,-500.0,0.00010557,2]
[426477275,1782439832000,-500.0,0.00010557,2]
[426477276,1782439832000,-500.0,0.00010557,2]
[426477271,1782439832000,-500.0,0.00010557,2]
[426477270,1782439832000,-500.0,0.00010557,2]
[426477296,1782439832000,-500.0,0.00010557,2]
[426477278,1782439832000,-500.0,0.00010557,2]
[426477291,1782439832000,-500.0,0.00010557,2]
[426477287,1782439832000,-500.0,0.00010557,2]
[426477293,1782439832000,-500.0,0.00010557,2]
[426477294,1782439832000,-500.0,0.00010557,2]
[426477315,1782439832000,-15206.88102714,0.00010651,2]
[426477314,1782439832000,-367.563545,0.0001064,2]
[426477312,1782439832000,-367.563545,0.0001064,2]
[426477313,1782439832000,-367.563545,0.0001064,2]
[426477306,1782439832000,-10514.34374792,0.0001064,2]
[426477310,1782439832000,-154.232718,0.0001064,2]
[426477309,1782439832000,-7311.40451707,0.0001064,2]
[426477305,1782439832000,-160.0,0.00010572,2]
[426477307,1782439832000,-64522.26280305,0.0001064,2]
[426477308,1782439832000,-130979.48893196,0.0001064,2]
[426477311,1782439832000,-367.563545,0.0001064,2]